Cogmind - Beta 15 @@@ ROGUE MODE // 2025.05.28 @ 13:56:56 Player: SuperSwiss Result: Self-destructed Performance ------------- Evolutions (2) 1000 Regions Visited (5) 1000 Robots Destroyed (37) 185 Value Destroyed (782) 782 Prototype IDs (23) 460 Alien Tech Used (0) 0 Bonus (300) 300 TOTAL SCORE: 3727 Bonus ------- Aligned with FarCom 300 Cogmind --------- Core Integrity 510/550 Matter 300/300 Energy 240/240 System Corruption 0% Temperature Cool (0) Movement Walking (105) Location -8/Materials Parts ------- > --- POWER (1) -------- Nuclear Core > --- PROPULSION (3) --- Improved Aluminum Leg Potential Leg > --- UTILITY (5) ------ Large Storage Unit Improved Sensor Array Improved Signal Interpreter Improved Terrain Scanner Improved Trap Extractor (3/6 Proton Bomb) > --- WEAPON (2) ------- Assault Rifle > --- INVENTORY (15) --- Ion Engine Light Ion Engine Nuclear Core Targeting Computer Target Analyzer Reaction Control System Hacking Suite Assault Rifle Shock Bomb Launcher Rocket Launcher Mining Claw Peak State ------------ > --- POWER ------------ Nuclear Core > --- PROPULSION ------- Improved Aluminum Leg Carbon-fiber Leg Potential Leg > --- UTILITY ---------- Large Storage Unit Improved Sensor Array Improved Signal Interpreter Improved Terrain Scanner Improved Trap Extractor > --- WEAPON ----------- Assault Rifle Assault Rifle > --- INVENTORY -------- Ion Engine Light Ion Engine Nuclear Core Targeting Computer Target Analyzer Reaction Control System Hacking Suite Assault Rifle Shock Bomb Launcher Rocket Launcher Mining Claw [Rating: 36] Favorites ----------- Power Ion Engine Engine Ion Engine Power Core Nuclear Core Propulsion Wheel Treads Light Treads Leg Potential Leg Wheel Wheel Utility Large Storage Unit Device Seismic Detector Storage Large Storage Unit Processor Improved Signal Interpreter Protection Light Armor Plating Weapon Assault Rifle Ballistic Gun Assault Rifle Launcher Shock Bomb Launcher Special Weapon Mining Laser Slashing Weapon Mining Claw Build | -11 -10 -10 -10 -9 -8 ------- Run | Yrd Mat Min Exi Min Mat Slots Evolved 4 | . . . . . 4 Power . | . . . . . . Propulsion 1 | . . . . . 1 Utility 3 | . . . . . 3 Weapon . | . . . . . . Parts Attached 32 | 9 6 8 1 1 7 Power 5 | 1 1 2 . . 1 Engine 4 | 1 1 2 . . . Core 1 | . . . . . 1 Reactor . | . . . . . . Propulsion 9 | 3 . 3 1 1 1 Treads 1 | 1 . . . . . Leg 4 | . . 1 1 1 1 Wheel 4 | 2 . 2 . . . Hover . | . . . . . . Flight . | . . . . . . Utility 10 | 2 3 1 . . 4 Device 4 | 1 . 1 . . 2 Storage 3 | 1 2 . . . . Processor 2 | . . . . . 2 Hackware . | . . . . . . Protection 1 | . 1 . . . . Artifact . | . . . . . . Weapon 8 | 3 2 2 . . 1 Energy Gun . | . . . . . . Energy Cannon . | . . . . . . Ballistic Gun 5 | 3 . 2 . . . Ballistic Cannon . | . . . . . . Launcher 1 | . . . . . 1 Special Weapon 1 | . 1 . . . . Impact Weapon . | . . . . . . Slashing Weapon 1 | . 1 . . . . Piercing Weapon . | . . . . . . Special Melee Weapon . | . . . . . . Unidentified Prototypes . | . . . . . . Parts Lost 9 | . 1 7 . . 1 Power 2 | . 1 1 . . . Propulsion 3 | . . 3 . . . Utility 2 | . . 1 . . 1 Weapon 2 | . . 2 . . . Highest Loss Streak 4 | . 1 4 . . 1 To Critical Strikes . | . . . . . . Average Backups 10 | 2 8 13 14 15 11 Power 1 | . . . 2 3 3 Propulsion . | . . . . . . Utility 4 | . 2 8 8 8 4 Weapon 4 | 1 4 4 4 4 4 Tool/Special . | . . . . . . Unused Backups 7 | . . . . . 7 Power 1 | . . . . . 1 Propulsion . | . . . . . . Utility 5 | . . . . . 5 Weapon 1 | . . . . . 1 Tool/Special . | . . . . . . Average Slot Usage (%) 98 | . 99 98 100 100 93 Engine 12 | . 14 13 14 14 1 Treads 6 | . 12 . . . . Leg 5 | . . 4 5 23 23 Wheel 15 | . 15 22 22 4 . Device 11 | . 12 10 12 2 19 Storage 13 | . 14 14 14 14 9 Protection 3 | . 1 3 1 11 5 Ballistic Gun 26 | . 25 28 28 28 15 Peak Build Rating 36 | 7 9 12 21 21 36 Average Rating 11 | 5 7 9 15 19 32 On Entrance 11 | . 7 9 9 21 20 Naked Turns . | . . . . . . Heaviest Build 88 | 13 88 32 30 30 40 Greatest Support 58 | 26 26 20 30 43 58 Greatest Overweight (x) 8 | 1 8 2 1 . . Average Overweight (x) 1 | . 2 1 . . . Largest Inventory Capacity 25 | 8 25 15 15 15 15 Average Capacity 15 | 7 15 15 15 15 15 Most Carried 15 | 5 15 15 15 15 14 Average Carried 11 | 2 9 14 14 14 11 Final Capacity 15 | 8 15 15 15 15 15 Final Carried 15 | 5 15 14 15 15 11 Class Distribution -------------------- 80% | Mutant 13% | Scavenger-Mutant 3% | Assassin 3% | Skirmisher Dominant Class ---------------- Mutant | -10/Materials Scavenger-Mutant | -10/Mines Mutant | -10/Exiles Mutant | -9/Mines Assassin | -8/Materials Resources | -11 -10 -10 -10 -9 -8 ----------- Run | Yrd Mat Min Exi Min Mat Matter Collected 1494 | 318 602 252 . 144 178 Remotely . | . . . . . . Salvage Created 1201 | 162 567 204 . . 268 Parts 73 | 16 21 19 . . 17 Haulers Intercepted 2 | . 2 . . . . Recyclers Shooed 2 | . 1 1 . . . Parts Field Recycled . | . . . . . . Retrieved Matter . | . . . . . . Parts Self-Destructed . | . . . . . . Prevented . | . . . . . . Kills | -11 -10 -10 -10 -9 -8 ------- Run | Yrd Mat Min Exi Min Mat Combat Hostiles Destroyed 27 | . 15 8 . . 4 Guns 25 | . 15 8 . . 2 AOE 1 | . . . . . 1 Classes Destroyed 10 | 2 4 1 . . 3 Worker 2 | . . . . . 2 Builder 1 | . . 1 . . . Tunneler 4 | 4 . . . . . Hauler 2 | . 2 . . . . Recycler 1 | 1 . . . . . Swarmer 12 | . 6 6 . . . Grunt 11 | . 7 2 . . 2 Brawler 1 | . . . . . 1 Sentry 1 | . . . . . 1 Subdweller 2 | . 2 . . . . Best Kill Streak 5 | 4 5 4 . . 5 Combat Bots Only 5 | . 5 3 . . 3 Max Kills in Single Turn 1 | 1 1 1 . . 1 Gunslinging . | . . . . . . Exploded 1 | . . . . . 1 Melee . | . . . . . . Uniques/NPCs Destroyed . | . . . . . . Combat | -11 -10 -10 -10 -9 -8 -------- Run | Yrd Mat Min Exi Min Mat Hostile Shots Fired 136 | . 54 64 . . 18 Missed 37 | . 14 17 . . 6 Hits 99 | . 40 47 . . 12 Melee 6 | . . . . . 6 Projectile 93 | . 40 47 . . 6 Critical Strikes 6 | . 1 1 . . 4 Damage Taken 1355 | . 581 510 . . 264 Core 246 | . 165 41 . . 40 Absorbed by Shields . | . . . . . . Core Remaining (%) 58 | 100 . . . 17 . Volleys Fired 123 | 13 66 30 . . 14 Largest 2 | 2 2 2 . . 2 Hottest 100 | 40 100 40 . . 40 Shots Fired 231 | 26 125 59 . . 21 Gun 220 | 26 119 59 . . 16 Cannon . | . . . . . . Launcher 5 | . . . . . 5 Special 6 | . 6 . . . . Kinetic 220 | 26 119 59 . . 16 Thermal 6 | . 6 . . . . Explosive . | . . . . . . Electromagnetic 5 | . . . . . 5 Robot Hit Streak 11 | 3 11 6 . . 4 Robot Miss Streak 5 | 5 4 4 . . 3 Penetration Max . | . . . . . . Secondary Targets 3 | . . 3 . . . Max Gunslinging Chain 1 | . . 1 . . . Shots Hit Robots 139 | 12 84 31 . . 12 Core Hits 57 | 6 30 13 . . 8 Critical Kills . | . . . . . . Critical Parts Destroyed 2 | . 1 1 . . . Critical Strikes 3 | . 2 1 . . . Destroy 3 | . 2 1 . . . Melee Attacks 8 | . 3 . . . 5 Impact . | . . . . . . Slashing 8 | . 3 . . . 5 Piercing . | . . . . . . Sneak Attacks . | . . . . . . Combat Hostiles . | . . . . . . Follow-up Attacks . | . . . . . . Damage Inflicted 2119 | 152 1068 445 . . 454 Guns 1793 | 152 1068 445 . . 128 Cannons . | . . . . . . Explosions 326 | . . . . . 326 Melee . | . . . . . . Ramming . | . . . . . . Kinetic 1793 | 152 1068 445 . . 128 Thermal . | . . . . . . Explosive . | . . . . . . Electromagnetic 326 | . . . . . 326 Impact . | . . . . . . Slashing . | . . . . . . Piercing . | . . . . . . Highest Corruption 6 | . 6 6 6 6 . Average Corruption 5 | . 4 6 6 6 . Corruption Purged . | . . . . . . Corruption Blocked . | . . . . . . Effects 50 | . 19 15 8 8 . Message Errors 14 | . 6 7 1 . . Matter Fused 14 | . 3 4 3 4 . Heat Flow Errors 5 | . 2 1 1 1 . Energy Discharges 5 | . . 1 3 1 . Parts Rejected 1 | . 1 . . . . Data Loss (minor) 6 | . 3 1 . 2 . Data Loss (major) 1 | . 1 . . . . Misfires 2 | . 1 1 . . . Weapon Failures 2 | . 2 . . . . Overload Shots . | . . . . . . Overflow Damage . | . . . . . . Projectiles . | . . . . . . Explosions . | . . . . . . Melee . | . . . . . . Knockbacks . | . . . . . . Impact . | . . . . . . Kinetic . | . . . . . . Secondary . | . . . . . . Self-Inflicted Damage 47 | . . . . . 47 Shots 3 | . . . . . 3 Rammed . | . . . . . . Targets Rammed . | . . . . . . Kicked . | . . . . . . Crushed . | . . . . . . Highest Temperature 228 | . 144 194 228 200 27 Average Temperature 48 | . 32 42 118 101 15 Received Heat Transfer 414 | . 183 168 . . 63 Siege Activations . | . . . . . . Martial Activations . | . . . . . . Shielding Activations . | . . . . . . Robots Disrupted . | . . . . . . Combat Hostiles . | . . . . . . Robots Corrupted 1 | . . . . . 1 Combat Hostiles 1 | . . . . . 1 Parts Fried . | . . . . . . Impact Corruptions . | . . . . . . Robots Melted . | . . . . . . Combat Hostiles . | . . . . . . Parts Melted 1 | . 1 . . . . Heat Transferred . | . . . . . . Parts Sabotaged . | . . . . . . Parts Stolen . | . . . . . . Parts Stripped . | . . . . . . Power Chain Reactions . | . . . . . . Alert | -11 -10 -10 -10 -9 -8 ------- Run | Yrd Mat Min Exi Min Mat Maximum Alert Level . | . . . . . . Low Security (%) 100 | 100 100 100 . 100 100 Level 1 . | . . . . . . Level 2 . | . . . . . . Level 3 . | . . . . . . Level 4 . | . . . . . . Level 5 . | . . . . . . High Security . | . . . . . . Max Security . | . . . . . . Peak Influence 175 | 10 175 50 . . 130 Initial 31 | . . 31 . . . Average 36 | 1 59 10 . . 45 Influence Increases 780 | 25 388 195 . . 172 Destroy 0b10 Robot/C 500 | . 260 160 . . 80 Destroy 0b10 Robot/NC 50 | 25 10 5 . . 10 Destroy Leader 104 | . 54 30 . . 20 Successful Hack 10 | . 10 . . . . Disable Machine 45 | . 15 . . . 30 Destroy Structure 11 | . 9 . . . 2 Partial Spotted 30 | . . . . . 30 Lose Combat Pursuer 30 | . 30 . . . . Influence Decreases 660 | 25 307 250 26 . 52 Entered New Map 76 | . . 50 26 . . Time Decay 523 | 25 307 149 . . 42 Lost Part 61 | . . 51 . . 10 Squads Dispatched 2 | . 2 . . . . Investigation 1 | . 1 . . . . Extermination . | . . . . . . Reinforcement 1 | . 1 . . . . Assault . | . . . . . . Garrison . | . . . . . . Intercept . | . . . . . . Searches Triggered . | . . . . . . Construction Impeded . | . . . . . . Haulers Reinforced . | . . . . . . Active Scanning Responses . | . . . . . . Cargo Convoy Interrupts . | . . . . . . Stealth | -11 -10 -10 -10 -9 -8 --------- Run | Yrd Mat Min Exi Min Mat Distress Signals 4 | . 1 . . . 3 Communications Jammed . | . . . . . . Distress Signals . | . . . . . . Times Spotted 42 | . 25 8 . . 9 Peak Tracking Total 4 | . 4 3 . . 4 Tactical Retreats 2 | . 2 . . . . Traps | -11 -10 -10 -10 -9 -8 ------- Run | Yrd Mat Min Exi Min Mat Traps Triggered 8 | . 7 . . . 1 Indirectly . | . . . . . . Trap Hack Attempts . | . . . . . . Triggered . | . . . . . . Disarmed . | . . . . . . Reprogrammed . | . . . . . . Reused . | . . . . . . Traps Extracted . | . . . . . . Installed . | . . . . . . Triggered . | . . . . . . Most Traps Carried 3 | . . 3 3 3 3 Machines | -11 -10 -10 -10 -9 -8 ---------- Run | Yrd Mat Min Exi Min Mat Machines Disabled 3 | . 1 . . . 2 Max in Single Turn 1 | . 1 . . . 1 Machines Repaired . | . . . . . . Machines Dismantled . | . . . . . . Machines Sabotaged . | . . . . . . Overloaded Fab Kills . | . . . . . . Hacking | -11 -10 -10 -10 -9 -8 --------- Run | Yrd Mat Min Exi Min Mat Machines Accessed 6 | . 4 1 1 . . Terminals 3 | . 3 . . . . Fabricators . | . . . . . . Repair Stations . | . . . . . . Recycling Units 1 | . 1 . . . . Scanalyzers . | . . . . . . Garrison Access . | . . . . . . Total Hacks 13 | . 11 1 1 . . Successful 7 | . 5 1 1 . . Failed 6 | . 6 . . . . Catastrophic . | . . . . . . Database Lockouts . | . . . . . . Manual 3 | . 2 . 1 . . Terminals 7 | . 7 . . . . Fabricators . | . . . . . . Repair Stations . | . . . . . . Recycling Units 4 | . 4 . . . . Scanalyzers . | . . . . . . Garrison Access . | . . . . . . Terminal Hacks 3 | . 1 1 1 . . Open Door 1 | . . 1 . . . Zone Layout 1 | . 1 . . . . Proto ID Catalog 1 | . . . 1 . . Fabricator Hacks . | . . . . . . Repair Station Hacks . | . . . . . . Recycling Unit Hacks 3 | . 3 . . . . Report Inventory 2 | . 2 . . . . Retrieve Components 1 | . 1 . . . . Scanalyzer . | . . . . . . Garrison Access Hacks . | . . . . . . Unauthorized Hacks 1 | . 1 . . . . Terminals 1 | . 1 . . . . Botnet 1 | . 1 . . . . Fabricators . | . . . . . . Repair Stations . | . . . . . . Recycling Units . | . . . . . . Scanalyzers . | . . . . . . Garrison Access . | . . . . . . Data Cores Recovered . | . . . . . . Used . | . . . . . . Hacking Detections 3 | . 3 . . . . Full Trace Events . | . . . . . . Feedback Events . | . . . . . . Feedback Blocked . | . . . . . . Robot Schematics Acquired . | . . . . . . Robots Built . | . . . . . . Authchips . | . . . . . . Time . | . . . . . . Total Robot Build Rating . | . . . . . . Part Schematics Acquired . | . . . . . . Parts Built . | . . . . . . Authchips . | . . . . . . Time . | . . . . . . Total Part Build Rating . | . . . . . . Parts Repaired . | . . . . . . Time . | . . . . . . Parts Recycled . | . . . . . . Recycled Matter . | . . . . . . Retrieved Matter . | . . . . . . Retrieved Components 7 | . 7 . . . . Parts Scanalyzed . | . . . . . . Part Schematics Acquired . | . . . . . . Parts Damaged . | . . . . . . Bothacking | -11 -10 -10 -10 -9 -8 ------------ Run | Yrd Mat Min Exi Min Mat Used RIF Installer . | . . . . . . Robots Hacked . | . . . . . . Non-combat . | . . . . . . Combat . | . . . . . . Robot Hacks Applied . | . . . . . . Relay Couplers Released . | . . . . . . Fabnet Peak Effective % . | . . . . . . Robots Rewired . | . . . . . . Allies Hacked . | . . . . . . Hacks Repelled . | . . . . . . Allies | -11 -10 -10 -10 -9 -8 -------- Run | Yrd Mat Min Exi Min Mat Total Allies . | . . . . . . Largest Group . | . . . . . . Highest-Rated Group . | . . . . . . Highest-Rated Ally . | . . . . . . Total Orders . | . . . . . . Ally Attacks . | . . . . . . Total Damage . | . . . . . . Kills . | . . . . . . Allies Corrupted . | . . . . . . Allies Melted . | . . . . . . Intel | -11 -10 -10 -10 -9 -8 ------- Run | Yrd Mat Min Exi Min Mat Active Infowar (turns) 1850 | 9 1148 519 . . 174 Sensors 136 | . . . . . 136 Terrain 174 | . . . . . 174 Seismic 1676 | 9 1148 519 . . . Robot Analysis Total . | . . . . . . Derelict Logs Recovered 2 | . . 1 . 1 . Drone Launches . | . . . . . . Drone Recoveries . | . . . . . . Exploration | -11 -10 -10 -10 -9 -8 ------------- Run | Yrd Mat Min Exi Min Mat Turns Passed 2739 | 126 1292 680 222 245 174 Spaces Moved 1843 | 59 744 476 233 240 91 Core 8 | 8 . . . . . Treads 146 | 20 126 . . . . Legs 427 | . . 2 94 240 91 Wheels 1262 | 31 618 474 139 . . Hover . | . . . . . . Flight . | . . . . . . Fastest Speed 50 | 50 95 95 90 90 105 Average Speed 114 | 113 135 102 92 99 107 Slowest Speed 260 | 160 240 260 95 105 110 Overloaded Moves . | . . . . . . Propulsion Burnouts . | . . . . . . Robots Hopped . | . . . . . . Potential Cave-ins . | . . . . . . Cave-ins Triggered . | . . . . . . Exploration Rate (%) 54 | 4 98 85 61 64 12 Regions Visited 5 Branch Regions 3 Pre-discovered Areas . | . . . . . . Known Exits Taken 1 | . . . . 1 . Unknown Exits Taken 4 | 1 1 1 1 . . Scrap Searched 4 | . . 1 . 3 . Spaces Dug 7 | . 5 . . . 2 Terrain Destroyed 7 | . 5 . . . 2 Melee 3 | . 1 . . . 2 Projectile 4 | . 4 . . . . AOE . | . . . . . . Terrain Rammed . | . . . . . . Walls Destroyed . | . . . . . . Machines Disabled . | . . . . . . Actions | -11 -10 -10 -10 -9 -8 --------- Run | Yrd Mat Min Exi Min Mat Total 2190 | 88 875 611 237 245 134 Wait 122 | 3 28 80 1 1 9 Move 1838 | 58 743 475 232 239 91 Hop . | . . . . . . Pick Up 30 | 5 15 7 1 1 1 Fast Attach 17 | 7 2 4 1 1 2 Attach 15 | . 5 5 . . 5 Detach 1 | . . . . . 1 Swap 23 | 2 11 4 1 1 4 Drop 13 | . 2 6 1 2 2 Fire 123 | 13 66 30 . . 14 Melee 8 | . 3 . . . 5 Ram . | . . . . . . Kick . | . . . . . . Crush . | . . . . . . Escape Stasis . | . . . . . . Rewire . | . . . . . . Trap . | . . . . . . Miscellaneous . | . . . . . . Route ------- -11/Scrapyard -10/Materials (discovered 6 exits: [*Mat x3] / *Min x2 / [*Sub]) -10/Mines (discovered 3 exits: [*Mat x2] / *Exi) -10/Exiles -9/Mines -8/Materials History --------- Turn | Location | Event 17 | -11/Scrapyard | Discovered new exit (range 15) 127 | -11/Scrapyard | Entered Materials 334 | -10/Materials | Build established: Mutant 346 | -10/Materials | Discovered new exit (range 4) 382 | -10/Materials | Discovered new exit (range 11) 471 | -10/Materials | Discovered new exit (range 10) 565 | -10/Materials | Core integrity fell below 50% 827 | -10/Materials | Derelicts attacked the area 847 | -10/Materials | Discovered new exit (range 16) 1010 | -10/Materials | Discovered new exit (range 13) 1048 | -10/Materials | Discovered new exit (range 16) 1419 | -10/Materials | Entered Mines 1478 | -10/Mines | Lost 4 parts (1p2n1w) 1529 | -10/Mines | Discovered new exit (range 14) 1552 | -10/Mines | Met a Derelict who couldn't figure out how to use a Trap Extractor 1708 | -10/Mines | Found a hidden stash of uninstalled traps 1924 | -10/Mines | Discovered new exit (range 4) 1982 | -10/Mines | Build established: Scavenger-Mutant 2052 | -10/Mines | Core integrity fell below 20% 2096 | -10/Mines | Deemed a non-threat by the Exiles lab entrance 2096 | -10/Mines | Discovered new exit (range 5) 2099 | -10/Mines | Entered Exiles 2129 | -10/Exiles | Met 8R-AWN 2144 | -10/Exiles | Met EX-HEX 2189 | -10/Exiles | Met EX-BIN 2206 | -10/Exiles | Aligned with FarCom system 2207 | -10/Exiles | Given EX-Vault access code 2230 | -10/Exiles | Opened EX-Vault 2236 | -10/Exiles | Found Potential Leg 2254 | -10/Exiles | Warned to stay clear of 0b10 Research branches 2281 | -10/Exiles | Met EX-DEC 2311 | -10/Exiles | Discovered new exit (range 14) 2321 | -10/Exiles | Left Exiles lab with Potential Leg 2321 | -10/Exiles | Entered Mines 2352 | -9/Mines | Build established: Mutant 2429 | -9/Mines | Identified exit to Materials 2565 | -9/Mines | Received a Mining Laser from a helpful Derelict 2566 | -9/Mines | Entered Materials 2566 | -8/Materials | Evolved 4 slots: Propulsion x1, Utility x3 2740 | -8/Materials | Self-destructed Last Messages --------------- 02687_ Acquired 59 matter. 02689_ U-05 Engineer lays Concrete. 02691_ W-25 Informer sends out distress signal. 02692_ Acquired 60 matter. 02693_ Acquired 41 matter. 02693_ U-05 Engineer builds a Wall. 02698_ U-05 Engineer lays Concrete. 02706_ Y-45 Defender destroyed. 02707_ U-05 Engineer lays Concrete. 02711_ Acquired 8 matter. 02713_ U-05 Engineer builds a Door. 02713_ Acquired 10 matter. 02720_ K-01 Serf collects debris. 02723_ U-05 Engineer lays Concrete. 02724_ K-01 Serf collects debris. 02737_ W-25 Informer sends out distress signal. 02737_ Triggered Blade Trap. 02737_ Massive razor-sharp blades shoot up from within the floor. 02737_ Assault Rifle severed. 02737_ Carbon-fiber Leg severed. Map ----- +----------------------------------------------------+ | #?# """ #??? ???? ???#????????????????????? | | #?# """ ##????????????????????????????????? | | "" ### "" "#?????????#??????????????????????? | | "" #?# ##??????"" #??????????????????????? | | "" #?####/####?? ???"" #??????????????????????? | | #?## = ###???""" #??????????????????????? | | ##+#######/ #?#???? #??????????????????????? | | #?????? ???????????????????????? | | [![#?????? ??#?????????????????????? | | =* #??####+####??????????????????????? | | ##### =%**#### #########??????????????? | | ???## [%#### ??????????????? | | # =!* ?????????????? | | ? + ! ?????????????? | | ####### *%= g?g???????????? | | ####??????######/## / ?????????????? | | ???????????# # #######????????????????? | | ???????????# ### ###??????????????????????? | | ???"????? ?# #?# #????????????????????????? | | ???????????# #?# #????????????????????????? | | ????? ?????# #?# ########?????????????????? | | ???????????# #?# # #?????????????????? | | ???????????########?# =# #?????????????????? | | ?????????? ?????#???# [# """ #?????????????????? | | ????????????????????# + """ #?????????????????? | | ????????????? #@ """ #?????????????????? | | ????????? # #?????????????????? | | ?????????? ########?????????????????? | | ?????????? #????????????????????????? | | ????????g?? w s????Y???????????????????? | | ?????????? #?#??????????????????????? | | ??????????? #????????????????????????? | | ???????????###########+##???????sss?#????????????? | | ??????????????????? ? ??????????????????????????? | | ?????????????????????""??????????????????????????? | | ?????????????????????""??????????????????????????? | | ??????????????????????"??????????????????????????? | | ?????????????????????????????????????????????????? | | ???????????????????????????????#?????????????????? | | ?????????????????????????????????????????????????? | | ?????????????????????????????????????????????????? | | ?????????????????????????????????????????????????? | | ?????????????????????????????????????????????????? | | ?????????????????????????????????????????????????? | | ?????????????????????????????????????????????????? | | ?????????????????????????????????????????????????? | | ?????????????????????????????????????????????????? | | ?????????????????????????????????????????????????? | | ?????????????????????????????????????????????????? | | ?????????????????????????????????????????????????? | +----------------------------------------------------+ Best States ------------- Heat Dissipation 31 Energy Generation 14 Energy Capacity 250 Matter Stores 300 Matter Capacity 300 Sight Range 16 Robot Scan Range 15 Terrain Scan Range 16 Terrain Scan Density 10 Armor Coverage 150 Evasion (%) 57 Targeting Accuracy 5 Recoil Reduction 1 Trap Extractor Capacity 6 Item Schematics ----------------- None Robot Schematics ------------------ None Fabricated ------------ Nothing Repaired ---------- Nothing Alien Tech Used ----------------- None Achievements -------------- None Challenges ------------ None Game ------ Seed LatentDispersionSink Manual? 0 Play Time 00:43:24 Cumulative 54.3 hours Start 2025.05.28 @ 13:08:11 End 2025.05.28 @ 13:56:56 Sessions 3 Manual Loads 0 Difficulty Rogue Special Mode None Game No. 66 Rogue 63 Adventurer 0 Explorer 3 Win Type - Total 0 Types 0/0/0/0/0/0/0/0/0/0 Lore% 11 Gallery% 34 Achievement% 32 Wizard Run 0 Options --------- Layout 0 ASCII 0 Keyboard 0 Movement Numpad Keybinds 0 Fullscreen 2 Font 16/SmallcapsGlow Map View 88x55 Zoom Use 0% Tactical HUD 1 Map Filters NONE Filters NONE Steam 1 RUN: af2d13a6-b94a-41f7-96d5-4f49e56dde4a